[Event "17th Memorial Lezcano Montalvo 2025"]
[Site "Gran Canaria"]
[Date "2025.04.19"]
[Round "8.45"]
[White "Vargas Tinoco, Martin Alonso"]
[Black "Fernandez De La Hoz A., Carlos"]
[Result "1/2-1/2"]
[Annotator "NA RC"]
[ECO "B07"]
[WhiteElo "1811"]
[BlackElo "1687"]
[PlyCount "122"]
[EventDate "2025.04.13"]
[EventType "swiss"]
[EventCountry "ESP"]
[SourceTitle "playchess.com"]
[Source "ChessBase"]
[SourceQuality "1"]
[TimeControl "5400+30"]

1. d4 {[%emt 0:00:11]} Nf6 {[%emt 0:02:06]} 2. Bf4 {[%emt 0:00:23]} d6 {[%emt 0:01:37]} 3. Nc3 {[%emt 0:00:19]} c6 {[%emt 0:00:24]} 4. e4 {[%emt 0:00:09]} e6 {[%emt 0:14:45]} 5. Nf3 {[%emt 0:03:22]} Be7 {[%emt 0:01:52]} 6. Qd2 {[%emt 0:10:13]} O-O {[%emt 0:00:21]} 7. Bd3 {[%emt 0:03:22]} b5 {[%emt 0:00:45]} 8. a3 {[%emt 0:00:25]} Ne8 {[%emt 0:16:33]} 9. O-O {[%emt 0:11:35]} a6 {[%emt 0:09:04]} 10. Rad1 {[%emt 0:05:14]} d5 {[%emt 0:02:36]} 11. Ne2 {[%emt 0:10:14]} dxe4 {[%emt 0:03:31]} 12. Bxe4 {[%emt 0:00:07]} Nf6 {[%emt 0:00:44]} 13. Bd3 {[%emt 0:04:10]} Bb7 {[%emt 0:02:48]} 14. Rfe1 {[%emt 0:08:42]} Nbd7 {[%emt 0:01:54]} 15. Ng3 {[%emt 0:03:33]} c5 {[%emt 0:03:35]} 16. c3 {[%emt 0:03:13]} Bxf3 {[%emt 0:00:51]} 17. gxf3 {[%emt 0:00:07]} c4 {[%emt 0:01:00]} 18. Bb1 {[%emt 0:00:16]} Nd5 {[%emt 0:08:03]} 19. Qc2 {[%emt 0:02:38]} f5 {[%emt 0:10:00]} 20. Be5 {[%emt 0:02:24]} Rf7 {[%emt 0:06:04]} 21. Qe2 {[%emt 0:11:04]} Nf8 {[%emt 0:01:11]} 22. Nh5 {[%emt 0:05:23]} g6 {[%emt 0:03:06]} 23. Nf4 {[%emt 0:00:16]} Nxf4 {[%emt 0:02:07]} 24. Bxf4 {[%emt 0:00:05]} Bg5 {[%emt 0:00:36]} 25. Qe3 {[%emt 0:02:21]} Bxf4 {[%emt 0:01:47]} 26. Qxf4 {[%emt 0:00:04]} g5 {[%emt 0:00:45]} 27. Qe5 {[%emt 0:00:24]} Qf6 {[%emt 0:00:49]} 28. d5 {[%emt 0:03:00]} exd5 {[%emt 0:02:55]} 29. Qxf6 {[%emt 0:00:43]} Rxf6 {[%emt 0:00:16]} 30. Rxd5 {[%emt 0:00:05]} Kf7 {[%emt 0:02:38]} 31. Rxf5 {[%emt 0:00:39]} Rxf5 {[%emt 0:00:14]} 32. Bxf5 {[%emt 0:00:05]} Kf6 {[%emt 0:00:02]} 33. Be4 {[%emt 0:01:14]} Rd8 {[%emt 0:00:10]} 34. Re2 {[%emt 0:00:25]} h6 {[%emt 0:00:11]} 35. Kf1 {[%emt 0:00:33]} Ne6 {[%emt 0:00:09]} 36. Ke1 {[%emt 0:02:00]} Nf4 {[%emt 0:00:38]} 37. Rd2 {[%emt 0:00:33]} Ke7 {[%emt 0:00:07]} 38. Rxd8 {[%emt 0:03:36]} Kxd8 {[%emt 0:00:05]} 39. Bb7 {[%emt 0:00:14]} Nd3+ {[%emt 0:00:32]} 40. Kd2 {[%emt 0:00:10]} Nc5 {[%emt 0:00:38]} 41. Be4 {[%emt 0:00:19]} Ke7 {[%emt 0:00:59]} 42. Ke3 {[%emt 0:00:40]} Kf6 {[%emt 0:01:13]} 43. f4 {[%emt 0:00:37]} Na4 {[%emt 0:02:08]} 44. fxg5+ {[%emt 0:00:13]} hxg5 {[%emt 0:00:00]} 45. Bb7 {[%emt 0:00:16]} Nc5 {[%emt 0:00:00]} 46. Bc8 {[%emt 0:00:33]} Ke5 {[%emt 0:00:03]} 47. h3 {[%emt 0:00:36]} a5 {[%emt 0:00:10]} 48. Kf3 {[%emt 0:00:36]} Na4 {[%emt 0:00:34]} 49. Ba6 {[%emt 0:01:09]} Nxb2 {[%emt 0:00:20]} 50. Bxb5 {[%emt 0:00:15]} Kd5 {[%emt 0:00:13]} 51. Kg4 {[%emt 0:00:30]} Nd1 {[%emt 0:00:18]} 52. Kxg5 {[%emt 0:00:44]} Nxc3 {[%emt 0:00:08]} 53. Bxc4+ {[%emt 0:02:05]} Kxc4 {[%emt 0:00:01]} 54. f4 {[%emt 0:00:24]} Kb3 {[%emt 0:00:13]} 55. f5 {[%emt 0:00:23]} Kxa3 {[%emt 0:00:09]} 56. h4 {[%emt 0:01:05]} Ne4+ {[%emt 0:00:54]} 57. Kg6 {[%emt 0:00:30]} Kb3 {[%emt 0:00:27]} 58. h5 {[%emt 0:00:20]} a4 {[%emt 0:00:23]} 59. h6 {[%emt 0:00:11]} Nf6 {[%emt 0:00:03]} 60. h7 {[%emt 0:03:27]} Nxh7 {[%emt 0:00:02]} 61. Kxh7 {[%emt 0:00:01]} a3 {[%emt 0:00:06]} 1/2-1/2

[Event "17th Memorial Lezcano Montalvo 2025"]
[Site "Gran Canaria"]
[Date "2025.04.19"]
[Round "8.46"]
[White "Castro Miguelez, Jose"]
[Black "Rodriguez Trujillo, Cristian"]
[Result "*"]
[Annotator "NA"]
[ECO "B13"]
[WhiteElo "1846"]
[BlackElo "1562"]
[PlyCount "35"]
[EventDate "2025.04.13"]
[EventType "swiss"]
[EventCountry "ESP"]
[SourceTitle "playchess.com"]
[Source "ChessBase"]
[SourceQuality "1"]
[TimeControl "5400+30"]

1. d4 {[%emt 1:31:00]} d5 {[%emt 0:00:11]} 2. Bf4 {[%emt 0:00:00]} c5 {[%emt 0:00:09]} 3. e3 {[%emt 0:00:00]} cxd4 {[%emt 0:00:12]} 4. exd4 {[%emt 0:00:00]} Nc6 {[%emt 0:00:10]} 5. c3 {[%emt 0:00:00]} Bf5 {[%emt 0:00:10]} 6. Nd2 {[%emt 0:00:00]} Nf6 {[%emt 0:00:56]} 7. Ngf3 {[%emt 0:00:00]} e6 {[%emt 1:32:12]} 8. Bb5 {[%emt 0:00:00]} Qb6 {[%emt 0:00:27]} 9. Qa4 {[%emt 0:00:00]} a6 {[%emt 0:01:03]} 10. Bxc6+ {[%emt 0:00:00]} bxc6 {[%emt 0:00:49]} 11. b4 {[%emt 0:00:00]} Be7 {[%emt 0:00:00]} 12. Ne5 {[%emt 0:00:00]} Rc8 {[%emt 0:00:33]} 13. O-O {[%emt 0:00:00]} O-O {[%emt 0:00:46]} 14. Bg5 {[%emt 0:00:00]} Qb7 {[%emt 0:01:11]} 15. Qd1 {[%emt 0:00:00]} Ne4 {[%emt 0:03:46]} 16. Nxe4 {[%emt 0:00:00]} Bxe4 {[%emt 0:00:14]} 17. Bxe7 {[%emt 0:00:00]} Qxe7 {[%emt 0:00:18]} 18. Re1 {[%emt 0:00:00]} *

[Event "17th Memorial Lezcano Montalvo 2025"]
[Site "Gran Canaria"]
[Date "2025.04.19"]
[Round "8.47"]
[White "Pinilla Sanchez, Josep A."]
[Black "Murashkin, Roman G"]
[Result "*"]
[Annotator "NA"]
[ECO "D00"]
[WhiteElo "1827"]
[BlackElo "2129"]
[PlyCount "30"]
[EventDate "2025.04.13"]
[EventType "swiss"]
[EventCountry "ESP"]
[SourceTitle "playchess.com"]
[Source "ChessBase"]
[SourceQuality "1"]
[TimeControl "5400+30"]

1. d4 {[%emt 0:00:22]} d5 {[%emt 0:00:14]} 2. Bf4 {[%emt 0:00:08]} Nf6 {[%emt 0:03:00]} 3. e3 {[%emt 0:00:40]} e6 {[%emt 1:28:46]} 4. Nd2 {[%emt 0:01:16]} Bd6 {[%emt 1:28:14]} 5. Bg3 {[%emt 0:00:47]} Bxg3 {[%emt 0:01:24]} 6. hxg3 {[%emt 1:30:17]} a6 {[%emt 0:00:17]} 7. Ngf3 {[%emt 0:01:55]} Nbd7 {[%emt 0:00:26]} 8. Bd3 {[%emt 0:01:11]} h6 {[%emt 1:27:57]} 9. Ne5 {[%emt 0:00:51]} Qe7 {[%emt 0:01:29]} 10. g4 {[%emt 0:01:52]} Nxe5 {[%emt 0:01:45]} 11. dxe5 {[%emt 0:00:54]} Nd7 {[%emt 0:00:12]} 12. f4 {[%emt 0:01:45]} Qb4 {[%emt 0:02:19]} 13. Qc1 {[%emt 0:08:19]} Nc5 {[%emt 0:00:24]} 14. Be2 {[%emt 0:00:27]} Bd7 {[%emt 1:24:23]} 15. a3 {[%emt 0:01:22]} Qb6 {[%emt 0:00:24]} *

[Event "17th Memorial Lezcano Montalvo 2025"]
[Site "Gran Canaria"]
[Date "2025.04.19"]
[Round "8.48"]
[White "Hernandez De Armas, Leonardo"]
[Black "Hernandez Guerra, Luna Yue"]
[Result "*"]
[Annotator "NA"]
[ECO "D32"]
[WhiteElo "1645"]
[BlackElo "1897"]
[PlyCount "46"]
[EventDate "2025.04.13"]
[EventType "swiss"]
[EventCountry "ESP"]
[SourceTitle "playchess.com"]
[Source "ChessBase"]
[SourceQuality "1"]
[TimeControl "5400+30"]

1. Nf3 {[%emt 0:00:04]} c5 {[%emt 0:00:03]} 2. c4 {[%emt 0:00:10]} Nc6 {[%emt 0:00:06]} 3. Nc3 {[%emt 0:00:06]} e6 {[%emt 0:00:07]} 4. e3 {[%emt 0:00:05]} Nf6 {[%emt 0:00:12]} 5. Be2 {[%emt 0:00:19]} Be7 {[%emt 0:00:44]} 6. O-O {[%emt 1:32:46]} O-O {[%emt 0:00:00]} 7. a3 {[%emt 0:00:10]} d5 {[%emt 0:00:00]} 8. cxd5 {[%emt 0:00:15]} exd5 {[%emt 0:00:00]} 9. d4 {[%emt 0:00:02]} c4 {[%emt 0:01:24]} 10. Ne5 {[%emt 0:01:20]} Bd6 {[%emt 1:32:54]} 11. f4 {[%emt 0:00:09]} Re8 {[%emt 0:00:55]} 12. Bf3 {[%emt 0:11:11]} Bc7 {[%emt 0:00:42]} 13. b3 {[%emt 0:01:04]} Ba5 {[%emt 0:01:27]} 14. b4 {[%emt 0:00:49]} Bb6 {[%emt 0:00:35]} 15. g4 {[%emt 0:01:28]} h6 {[%emt 0:08:44]} 16. h4 {[%emt 0:01:35]} Ne4 {[%emt 0:01:23]} 17. Bxe4 {[%emt 0:00:32]} dxe4 {[%emt 0:00:10]} 18. g5 {[%emt 0:01:57]} Nxe5 {[%emt 0:01:23]} 19. dxe5 {[%emt 0:00:16]} Qd3 {[%emt 0:00:19]} 20. Qxd3 {[%emt 0:01:06]} exd3 {[%emt 0:00:10]} 21. Nd5 {[%emt 0:02:35]} hxg5 {[%emt 0:00:32]} 22. hxg5 {[%emt 0:00:22]} Bg4 {[%emt 1:22:26]} 23. Nxb6 {[%emt 0:00:58]} axb6 {[%emt 0:00:01]} *

[Event "17th Memorial Lezcano Montalvo 2025"]
[Site "Gran Canaria"]
[Date "2025.04.19"]
[Round "8.49"]
[White "Cabrera Martel, Isaac"]
[Black "Bangiev, Katharina"]
[Result "*"]
[Annotator "NA"]
[ECO "E76"]
[WhiteElo "1655"]
[BlackElo "1848"]
[PlyCount "25"]
[EventDate "2025.04.13"]
[EventType "swiss"]
[EventCountry "ESP"]
[SourceTitle "playchess.com"]
[Source "ChessBase"]
[SourceQuality "1"]
[TimeControl "5400+30"]

1. d4 {[%emt 0:00:03]} Nf6 {[%emt 0:00:07]} 2. c4 {[%emt 0:00:08]} g6 {[%emt 0:00:06]} 3. Nc3 {[%emt 0:00:10]} Bg7 {[%emt 0:00:07]} 4. e4 {[%emt 0:00:11]} d6 {[%emt 0:00:09]} 5. f4 {[%emt 0:01:37]} Nbd7 {[%emt 0:00:10]} 6. Nf3 {[%emt 0:00:38]} O-O {[%emt 0:00:24]} 7. Be2 {[%emt 0:03:04]} Re8 {[%emt 0:04:07]} 8. O-O {[%emt 0:09:47]} e5 {[%emt 0:01:03]} 9. fxe5 {[%emt 0:14:48]} dxe5 {[%emt 0:00:12]} 10. dxe5 {[%emt 0:01:48]} Nxe5 {[%emt 0:00:17]} 11. Qxd8 {[%emt 0:05:30]} Nxf3+ {[%emt 0:00:09]} 12. Bxf3 {[%emt 0:00:18]} Rxd8 {[%emt 0:00:11]} 13. Bg5 {[%emt 0:00:22]} *

[Event "17th Memorial Lezcano Montalvo 2025"]
[Site "Gran Canaria"]
[Date "2025.04.19"]
[Round "8.50"]
[White "Schmitz, Manuela"]
[Black "Morell Rojas, Samuel"]
[Result "*"]
[Annotator "NA"]
[ECO "A49"]
[WhiteElo "1815"]
[BlackElo "1652"]
[PlyCount "24"]
[EventDate "2025.04.13"]
[EventType "swiss"]
[EventCountry "ESP"]
[SourceTitle "playchess.com"]
[Source "ChessBase"]
[SourceQuality "1"]
[TimeControl "5400+30"]

1. d4 {[%emt 0:00:02]} Nf6 {[%emt 0:00:57]} 2. Nf3 {[%emt 0:00:08]} g6 {[%emt 0:00:21]} 3. g3 {[%emt 0:00:06]} Bg7 {[%emt 0:00:27]} 4. Bg2 {[%emt 0:00:07]} d6 {[%emt 0:00:44]} 5. O-O {[%emt 0:01:48]} O-O {[%emt 0:00:20]} 6. b3 {[%emt 0:03:04]} c5 {[%emt 0:01:58]} 7. dxc5 {[%emt 0:04:08]} Ne4 {[%emt 0:00:32]} 8. Nd4 {[%emt 0:01:43]} Nxc5 {[%emt 0:03:20]} 9. c3 {[%emt 0:01:55]} e5 {[%emt 0:02:39]} 10. Nf3 {[%emt 0:00:07]} Nc6 {[%emt 0:01:56]} 11. Ba3 {[%emt 0:03:24]} Bf5 {[%emt 0:08:50]} 12. Bxc5 {[%emt 0:07:33]} dxc5 {[%emt 0:00:28]} *

[Event "17th Memorial Lezcano Montalvo 2025"]
[Site "Gran Canaria"]
[Date "2025.04.19"]
[Round "8.50"]
[White "Trocoli Romero, Luis Dingyu"]
[Black "Rossello Padron, Carlos"]
[Result "1-0"]
[Annotator "NA RC"]
[ECO "A49"]
[WhiteElo "1599"]
[BlackElo "1776"]
[PlyCount "101"]
[EventDate "2025.04.13"]
[EventType "swiss"]
[EventCountry "ESP"]
[SourceTitle "playchess.com"]
[Source "ChessBase"]
[SourceQuality "1"]
[TimeControl "5400+30"]

1. d4 {[%emt 0:00:02]} Nf6 {[%emt 0:00:57]} 2. Nf3 {[%emt 0:00:08]} g6 {[%emt 0:00:21]} 3. g3 {[%emt 0:00:06]} Bg7 {[%emt 0:00:27]} 4. Bg2 {[%emt 0:00:07]} d6 {[%emt 0:00:44]} 5. O-O {[%emt 0:01:48]} O-O {[%emt 0:00:20]} 6. b3 {[%emt 0:03:04]} c5 {[%emt 0:01:58]} 7. dxc5 {[%emt 0:04:08]} Ne4 {[%emt 0:00:32]} 8. Nd4 {[%emt 0:01:43]} Nxc5 {[%emt 0:03:20]} 9. c3 {[%emt 0:01:55]} e5 {[%emt 0:02:39]} 10. Nf3 {[%emt 0:00:07]} Nc6 {[%emt 0:01:56]} 11. Ba3 {[%emt 0:03:24]} Bf5 {[%emt 0:08:50]} 12. Bxc5 {[%emt 0:07:33]} dxc5 {[%emt 0:00:28]} 13. Nh4 {[%emt 0:06:03]} Bd7 {[%emt 0:01:21]} 14. Bd5 {[%emt 0:07:48]} Qc7 {[%emt 0:01:41]} 15. e4 {[%emt 0:04:06]} Rad8 {[%emt 0:02:54]} 16. Qc2 {[%emt 0:01:36]} Ne7 {[%emt 0:01:15]} 17. c4 {[%emt 0:04:49]} b5 {[%emt 0:01:11]} 18. Nc3 {[%emt 0:01:51]} b4 {[%emt 0:00:48]} 19. Nd1 {[%emt 0:04:21]} Nc6 {[%emt 0:01:57]} 20. Bxc6 {[%emt 0:03:52]} Qxc6 {[%emt 0:01:08]} 21. Ne3 {[%emt 0:00:21]} Bf6 {[%emt 0:02:33]} 22. Nhg2 {[%emt 0:00:53]} Kh8 {[%emt 0:05:50]} 23. Nd5 {[%emt 0:01:59]} Bg7 {[%emt 0:00:21]} 24. Rad1 {[%emt 0:04:51]} f5 {[%emt 0:02:06]} 25. f3 {[%emt 0:02:02]} Be6 {[%emt 0:01:50]} 26. Nh4 {[%emt 0:08:30]} Qb7 {[%emt 0:04:20]} 27. Ng2 {[%emt 0:03:52]} g5 {[%emt 0:01:33]} 28. Nge3 {[%emt 0:07:03]} f4 {[%emt 0:01:26]} 29. Nf5 {[%emt 0:01:45]} Bxf5 {[%emt 0:00:38]} 30. exf5 {[%emt 0:00:07]} Qf7 {[%emt 0:02:39]} 31. g4 {[%emt 0:02:58]} Rfe8 {[%emt 0:02:05]} 32. Kg2 {[%emt 0:01:05]} Bf6 {[%emt 0:04:18]} 33. h3 {[%emt 0:02:39]} Be7 {[%emt 0:00:30]} 34. Nc7 {[%emt 0:01:25]} Rxd1 {[%emt 0:01:41]} 35. Rxd1 {[%emt 0:00:38]} Rd8 {[%emt 0:02:22]} 36. Ne6 {[%emt 0:01:19]} Rxd1 {[%emt 0:01:26]} 37. Qxd1 {[%emt 0:00:04]} Bf6 {[%emt 0:00:17]} 38. Qd6 {[%emt 0:00:56]} h5 {[%emt 0:01:09]} 39. Qf8+ {[%emt 0:00:40]} Qxf8 {[%emt 0:00:28]} 40. Nxf8 {[%emt 0:00:07]} hxg4 {[%emt 0:00:37]} 41. hxg4 {[%emt 0:00:13]} Kg8 {[%emt 0:01:29]} 42. Nd7 {[%emt 0:00:05]} Kf7 {[%emt 0:05:11]} 43. Nxc5 {[%emt 0:00:19]} Ke8 {[%emt 0:00:40]} 44. Kf2 {[%emt 0:00:44]} Kd8 {[%emt 0:01:16]} 45. Ke2 {[%emt 0:00:36]} Be7 {[%emt 0:01:00]} 46. Ne4 {[%emt 0:00:18]} Kd7 {[%emt 0:00:43]} 47. Kd3 {[%emt 0:00:31]} a6 {[%emt 0:00:38]} 48. f6 {[%emt 0:00:52]} Bd8 {[%emt 0:00:55]} 49. f7 {[%emt 0:01:16]} Ke7 {[%emt 0:01:36]} 50. Nxg5 {[%emt 0:00:08]} Kf8 {[%emt 0:00:11]} 51. Ne6+ {[%emt 0:09:13]} 1-0

[Event "17th Memorial Lezcano Montalvo 2025"]
[Site "Gran Canaria"]
[Date "2025.04.19"]
[Round "8.51"]
[White "Guerra Aleman, Marcial"]
[Black "Leandro Tejera, Damian"]
[Result "1-0"]
[Annotator "NA RC"]
[ECO "A90"]
[WhiteElo "1766"]
[BlackElo "1546"]
[PlyCount "57"]
[EventDate "2025.04.13"]
[EventType "swiss"]
[EventCountry "ESP"]
[SourceTitle "playchess.com"]
[Source "ChessBase"]
[SourceQuality "1"]
[TimeControl "5400+30"]

1. Nf3 {[%emt 0:02:19]} f5 {[%emt 0:00:13]} 2. g3 {[%emt 0:00:11]} e6 {[%emt 0:00:05]} 3. Bg2 {[%emt 0:00:12]} Nf6 {[%emt 0:00:12]} 4. O-O {[%emt 0:00:11]} d5 {[%emt 0:00:06]} 5. d4 {[%emt 0:00:07]} Bd6 {[%emt 0:00:05]} 6. c4 {[%emt 0:00:13]} c6 {[%emt 0:00:07]} 7. Nc3 {[%emt 0:01:07]} O-O {[%emt 0:00:27]} 8. cxd5 {[%emt 0:02:33]} exd5 {[%emt 0:02:11]} 9. Ne5 {[%emt 0:03:07]} Nbd7 {[%emt 0:01:01]} 10. f4 {[%emt 0:00:50]} Ne4 {[%emt 0:00:58]} 11. Nxe4 {[%emt 0:00:54]} fxe4 {[%emt 0:00:47]} 12. a3 {[%emt 0:02:30]} Qb6 {[%emt 0:02:04]} 13. e3 {[%emt 0:03:02]} Nxe5 {[%emt 1:28:44]} 14. fxe5 {[%emt 0:01:45]} Rxf1+ {[%emt 0:00:00]} 15. Qxf1 {[%emt 0:01:59]} Be7 {[%emt 0:00:00]} 16. b4 {[%emt 0:24:30]} a5 {[%emt 0:00:00]} 17. bxa5 {[%emt 0:00:31]} Qxa5 {[%emt 0:00:00]} 18. Qd1 {[%emt 0:02:48]} Qc3 {[%emt 0:00:00]} 19. Bd2 {[%emt 0:00:24]} Qb2 {[%emt 0:00:00]} 20. a4 {[%emt 0:00:55]} Qb6 {[%emt 0:00:00]} 21. a5 {[%emt 0:03:10]} Qc7 {[%emt 0:00:00]} 22. Qb3 {[%emt 0:00:24]} b6 {[%emt 0:00:00]} 23. Bxe4 {[%emt 0:02:23]} bxa5 {[%emt 0:00:00]} 24. Bxd5+ {[%emt 0:00:34]} Kh8 {[%emt 0:00:00]} 25. Bg2 {[%emt 0:03:34]} Rb8 {[%emt 0:00:00]} 26. Qc2 {[%emt 0:05:24]} Bb4 {[%emt 0:00:00]} 27. Bxb4 {[%emt 0:06:48]} Rxb4 {[%emt 0:00:00]} 28. Qxc6 {[%emt 0:01:11]} Qb8 {[%emt 0:00:00]} 29. Qe8# {[%emt 0:31:24]} 1-0

[Event "17th Memorial Lezcano Montalvo 2025"]
[Site "Gran Canaria"]
[Date "2025.04.19"]
[Round "8.51"]
[White "Angulo Diaz, Dario"]
[Black "Vargas Tinoco, Martin Alonso"]
[Result "*"]
[Annotator "NA"]
[ECO "A90"]
[WhiteElo "1568"]
[BlackElo "1811"]
[PlyCount "30"]
[EventDate "2025.04.13"]
[EventType "swiss"]
[EventCountry "ESP"]
[SourceTitle "playchess.com"]
[Source "ChessBase"]
[SourceQuality "1"]
[TimeControl "5400+30"]

1. Nf3 {[%emt 0:02:19]} f5 {[%emt 0:00:13]} 2. g3 {[%emt 0:00:11]} e6 {[%emt 0:00:05]} 3. Bg2 {[%emt 0:00:12]} Nf6 {[%emt 0:00:12]} 4. O-O {[%emt 0:00:11]} d5 {[%emt 0:00:06]} 5. d4 {[%emt 0:00:07]} Bd6 {[%emt 0:00:05]} 6. c4 {[%emt 0:00:13]} c6 {[%emt 0:00:07]} 7. Nc3 {[%emt 0:01:07]} O-O {[%emt 0:00:27]} 8. cxd5 {[%emt 0:02:33]} exd5 {[%emt 0:02:11]} 9. Ne5 {[%emt 0:03:07]} Nbd7 {[%emt 0:01:01]} 10. f4 {[%emt 0:00:50]} Ne4 {[%emt 0:00:58]} 11. Nxe4 {[%emt 0:00:54]} fxe4 {[%emt 0:00:47]} 12. a3 {[%emt 0:02:30]} Qb6 {[%emt 0:02:04]} 13. e3 {[%emt 0:03:02]} Nxe5 {[%emt 1:28:44]} 14. fxe5 {[%emt 0:01:45]} Rxf1+ {[%emt 0:00:00]} 15. Qxf1 {[%emt 0:01:59]} Be7 {[%emt 0:00:00]} *

[Event "17th Memorial Lezcano Montalvo 2025"]
[Site "Gran Canaria"]
[Date "2025.04.19"]
[Round "8.52"]
[White "Oramas Medina, Miguel"]
[Black "Roca Marrero, Fernando"]
[Result "*"]
[Annotator "NA"]
[ECO "D12"]
[WhiteElo "1796"]
[BlackElo "1617"]
[PlyCount "27"]
[EventDate "2025.04.13"]
[EventType "swiss"]
[EventCountry "ESP"]
[SourceTitle "playchess.com"]
[Source "ChessBase"]
[SourceQuality "1"]
[TimeControl "5400+30"]

1. d4 {[%emt 1:31:00]} d5 {[%emt 0:00:31]} 2. c4 {[%emt 0:00:15]} c6 {[%emt 0:00:08]} 3. Nf3 {[%emt 0:00:12]} Bf5 {[%emt 0:01:12]} 4. e3 {[%emt 0:00:07]} e6 {[%emt 0:00:15]} 5. a3 {[%emt 0:01:01]} Nf6 {[%emt 0:01:39]} 6. Nc3 {[%emt 0:00:33]} Be7 {[%emt 0:00:46]} 7. Be2 {[%emt 0:00:09]} Nbd7 {[%emt 0:01:02]} 8. b4 {[%emt 0:00:20]} a6 {[%emt 0:00:48]} 9. Bb2 {[%emt 0:01:29]} h6 {[%emt 0:00:20]} 10. O-O {[%emt 0:04:32]} O-O {[%emt 1:28:49]} 11. Re1 {[%emt 0:06:33]} Ne4 {[%emt 0:03:28]} 12. Nxe4 {[%emt 0:00:15]} Bxe4 {[%emt 1:26:15]} 13. Ne5 {[%emt 0:05:11]} Nxe5 {[%emt 0:00:59]} 14. dxe5 {[%emt 0:00:07]} *

[Event "17th Memorial Lezcano Montalvo 2025"]
[Site "Gran Canaria"]
[Date "2025.04.19"]
[Round "8.53"]
[White "Alonso Galvez, Ana Belen"]
[Black "Sanchez Ramirez, Gustavo"]
[Result "*"]
[Annotator "NA"]
[ECO "A27"]
[WhiteElo "1554"]
[BlackElo "1780"]
[PlyCount "28"]
[EventDate "2025.04.13"]
[EventType "swiss"]
[EventCountry "ESP"]
[SourceTitle "playchess.com"]
[Source "ChessBase"]
[SourceQuality "1"]
[TimeControl "5400+30"]

1. c4 {[%emt 0:00:04]} e5 {[%emt 0:00:09]} 2. Nc3 {[%emt 0:00:08]} Nc6 {[%emt 0:00:10]} 3. Nf3 {[%emt 0:00:14]} Bc5 {[%emt 0:00:25]} 4. Ne4 {[%emt 0:02:18]} Be7 {[%emt 0:03:02]} 5. d4 {[%emt 0:00:52]} exd4 {[%emt 0:01:14]} 6. Nxd4 {[%emt 0:00:32]} Nf6 {[%emt 0:00:52]} 7. Nxf6+ {[%emt 1:29:52]} Bxf6 {[%emt 0:00:10]} 8. e3 {[%emt 0:01:34]} O-O {[%emt 0:00:37]} 9. Be2 {[%emt 1:23:30]} Nxd4 {[%emt 0:04:28]} 10. exd4 {[%emt 0:00:02]} d5 {[%emt 0:00:19]} 11. c5 {[%emt 0:07:04]} c6 {[%emt 0:01:07]} 12. O-O {[%emt 0:02:52]} Qc7 {[%emt 0:03:19]} 13. Re1 {[%emt 0:03:01]} Re8 {[%emt 0:04:35]} 14. Be3 {[%emt 0:00:27]} g6 {[%emt 0:03:04]} *

[Event "17th Memorial Lezcano Montalvo 2025"]
[Site "Gran Canaria"]
[Date "2025.04.19"]
[Round "8.54"]
[White "Martinez Correa, Rafael"]
[Black "Trocoli Romero, Luis Dingyu"]
[Result "*"]
[Annotator "NA"]
[ECO "E68"]
[WhiteElo "1719"]
[BlackElo "1599"]
[PlyCount "26"]
[EventDate "2025.04.13"]
[EventType "swiss"]
[EventCountry "ESP"]
[SourceTitle "playchess.com"]
[Source "ChessBase"]
[SourceQuality "1"]
[TimeControl "5400+30"]

1. c4 {[%emt 0:00:06]} Nf6 {[%emt 0:00:20]} 2. Nc3 {[%emt 0:00:29]} g6 {[%emt 0:00:10]} 3. g3 {[%emt 0:00:41]} Bg7 {[%emt 1:31:30]} 4. Bg2 {[%emt 0:00:19]} d6 {[%emt 0:00:18]} 5. d4 {[%emt 0:00:47]} O-O {[%emt 0:00:11]} 6. Nf3 {[%emt 0:00:55]} Nbd7 {[%emt 0:00:27]} 7. O-O {[%emt 0:01:44]} e5 {[%emt 0:03:05]} 8. b3 {[%emt 0:06:09]} c6 {[%emt 0:05:33]} 9. e4 {[%emt 0:01:58]} exd4 {[%emt 0:06:59]} 10. Nxd4 {[%emt 0:00:34]} Nc5 {[%emt 0:00:15]} 11. Bb2 {[%emt 0:02:16]} Re8 {[%emt 0:01:38]} 12. Qc2 {[%emt 0:01:31]} a5 {[%emt 0:08:25]} 13. Rad1 {[%emt 0:04:51]} Qb6 {[%emt 0:07:12]} *